Workbook

Sheet Resumo
B1: Ministério da Integração e do Desenvolvimento Regional – MIDR Companhia de Desenvolvimento dos Vales do São Francisco e do Parnaíba
A2: Fornecimento, a instalação, o comissionamento, a aprovação junto à concessionária de energia local e a operação assistida e manutenção por período de 12 meses de Sistema de Geração Fotovoltaica on-grid para o Edifício Sede da Codevasf, localizado em Brasília/DF
A3: ITEM | B3: DESCRIÇÃO / ESPECIFICAÇÃO | C3: UNIDADE DE MEDIDA | D3: QUANTIDADE | E3: Preço Unitário | F3: Preço Total
A4: 1 | B4: =Orçamento!C7 -> Adequação do telhado localizado na cobertura do Edifício Sede | C4: =Orçamento!D7 -> und. | D4: =Orçamento!E7 -> 1 | E4: =Orçamento!I7 -> 221514.9832 | F4: =D4*E4 -> 221514.9832
A5: 2 | B5: =Orçamento!C11 -> Adequação do SPDA do Edifício Sede | C5: =Orçamento!D11 -> und. | D5: =Orçamento!E11 -> 1 | E5: =Orçamento!I11 -> 154441.1167 | F5: =D5*E5 -> 154441.1167
A6: 3 | B6: =Orçamento!C15 -> Projeto executivo, fornecimento, instalação, comissionamento e aprovação junto à concessionaria de energia local de Sistema de Geração Fotovoltaica on-grid de 424 kWp na cobertura do Edifício Sede da Codevasf, conforme condições estabelecidas neste edital e seus Anexos | C6: =Orçamento!D15 -> kWp | D6: =Orçamento!E15 -> 424 | E6: =Orçamento!F15 -> 2568.026056 | F6: 1088843.048
A7: 4 | B7: =Orçamento!C16 -> Projeto Executivo, fornecimento, instalação, comissionamento e aprovação junto à concessionaria de energia local de Sistema de Geração Fotovoltaica on-grid em estrutura carport de 177 kWp no estacionamento do Edifício Sede da Codevasf, conforme condições estabelecidas neste edital e seus Anexos. | C7: =Orçamento!D16 -> kWp | D7: =Orçamento!E16 -> 177 | E7: =Orçamento!F16 -> 3688 | F7: 652776 | G7: =F7+F6 -> 1741619.048
A8: VALOR TOTAL : | F8: =SUM(F4:F7) -> 2117575.148
G9: =G7/F8 -> 0.8224591461
C19: =(G7*100%)/F8 -> 0.8224591461

Sheet Orçamento
C1: Ministério da Integração e do Desenvolvimento Regional – MIDR
C2: Companhia de Desenvolvimento dos Vales do São Francisco e do Parnaíba
A3: Fornecimento, a instalação, o comissionamento, a aprovação junto à concessionária de energia local e a operação assistida e manutenção por período de 12 meses de Sistema de Geração Fotovoltaica on-grid para o Edifício Sede da Codevasf, localizado em Brasília/DF | D3: Base de preço | E3: SINAPI | F3: 2024-09-01 | G3: Sem desoneração
G4: BDI Serviço | H4: =BDI!C24 -> 0.20796173
A5: ITEM | B5: Fonte | C5: DESCRIÇÃO | D5: UND. | E5: QNT. | F5: Custo direto | G5: BDI | H5: Custo com BDI | I5: TOTAL
A7: 1 | B7: Composição Própria | C7: Adequação do telhado localizado na cobertura do Edifício Sede | D7: und. | E7: 1 | I7: =SUM(I8:I10) -> 221514.9832
A8: 1.1 | C8: ='Composição Telhado'!D3 -> Remoção das telhas de fibrocimento | D8: ='Composição Telhado'!E3 -> m² | E8: ='Composição Telhado'!F3 -> 2163 | F8: ='Composição Telhado'!G3 -> 4.9 | G8: =$H$4 -> 0.20796173 | H8: =F8*(1+G8) -> 5.919012477 | I8: =H8*E8 -> 12802.82399
A9: 1.2 | C9: ='Composição Telhado'!D4 -> Renovação da trama de madeira | D9: ='Composição Telhado'!E4 -> m² | E9: ='Composição Telhado'!F4 -> 1081.5 | F9: ='Composição Telhado'!G4 -> 23.82 | G9: =$H$4 -> 0.20796173 | H9: =F9*(1+G9) -> 28.77364841 | I9: =H9*E9 -> 31118.70076
A10: 1.3 | C10: ='Composição Telhado'!D5 -> Telhamento | D10: ='Composição Telhado'!E5 -> m² | E10: ='Composição Telhado'!F5 -> 2163 | F10: ='Composição Telhado'!G5 -> 67.97 | G10: 0.20796173 | H10: 82.10515879 | I10: 177593.4585
A11: 2 | B11: Composição Própria | C11: Adequação do SPDA do Edifício Sede | D11: und. | E11: 1 | I11: =SUM(I12:I14) -> 154441.1167
A12: 2.1 | C12: ='Composição SPDA'!D3 -> Sistema de Aterramento | D12: ='Composição SPDA'!G3 -> und. | E12: ='Composição SPDA'!H3 -> 1 | F12: ='Composição SPDA'!J3 -> 4039.37 | G12: 0.20796173 | H12: =F12*(1+G12) -> 4879.404374 | I12: =H12*E12 -> 4879.404374
A13: 2.2 | C13: ='Composição SPDA'!D8 -> Sistema de Captação | D13: ='Composição SPDA'!G8 -> und. | E13: ='Composição SPDA'!H8 -> 1 | F13: ='Composição SPDA'!J8 -> 1823.02 | G13: 0.20796173 | H13: =F13*(1+G13) -> 2202.138393 | I13: =H13*E13 -> 2202.138393
A14: 2.3 | C14: ='Composição SPDA'!D13 -> Condutores de proteção | D14: ='Composição SPDA'!G13 -> und. | E14: ='Composição SPDA'!H13 -> 1 | F14: ='Composição SPDA'!J13 -> 121990.267 | G14: 0.20796173 | H14: 147359.574 | I14: 147359.574
A15: 3 | B15: Cotação | C15: Projeto executivo, fornecimento, instalação, comissionamento e aprovação junto à concessionaria de energia local de Sistema de Geração Fotovoltaica on-grid de 424 kWp na cobertura do Edifício Sede da Codevasf, conforme condições estabelecidas neste edital e seus Anexos | D15: kWp | E15: ='Cotação SGF Cobertura'!I6 -> 424 | F15: ='Cotação SGF Cobertura'!I32 -> 2568.026056 | I15: =E15*F15 -> 1088843.048
A16: 4 | B16: Cotação | C16: Projeto Executivo, fornecimento, instalação, comissionamento e aprovação junto à concessionaria de energia local de Sistema de Geração Fotovoltaica on-grid em estrutura carport de 177 kWp no estacionamento do Edifício Sede da Codevasf, conforme condições estabelecidas neste edital e seus Anexos. | D16: kWp | E16: ='Cotação SGF Estacionamento'!I6 -> 177 | F16: ='Cotação SGF Estacionamento'!I34 -> 3688 | I16: =E16*F16 -> 652776

Sheet Composição Telhado
A1: Adequação do telhado localizado na cobertura do Edifício Sede | E1: SINAPI 09/2024
A2: Item | B2: Fonte | C2: Código | D2: Descrição | E2: Und. | F2: Qnt. | G2: Custo Direto | H2: Custo Total
A3: 1.1 | B3: SINAPI | C3: 97649 | D3: Remoção das telhas de fibrocimento | E3: m² | F3: 2163 | G3: 4.9 | H3: =F3*G3 -> 10598.7
A4: 1.2 | B4: SINAPI | C4: 92543 | D4: Renovação da trama de madeira | E4: m² | F4: 1081.5 | G4: 23.82 | H4: =F4*G4 -> 25761.33
A5: 1.3 | B5: SINAPI | C5: 94213 | D5: Telhamento | E5: m² | F5: 2163 | G5: 67.97 | H5: 147019.11
A6: TOTAL | H6: =SUM(H3:H5) -> 183379.14

Sheet Composição SPDA
C1: Adequação do SPDA do Edifício Sede | G1: SINAPI 09/2024
A2: Item | B2: Fonte | C2: Item | D2: Fonte | E2: Código | F2: Descrição | G2: Und. | H2: Qnt. | I2: Custo Direto | J2: Custo Total
C3: 2.1 | D3: Sistema de Aterramento | G3: und. | H3: 1 | J3: =SUM(J4:J7) -> 4039.37
C4: 2.1.1 | D4: SINAPI | E4: 96985 | F4: HASTE DE ATERRAMENTO, DIÂMETRO 5/8",COM 3 METROS-FORNECIMENTO E INSTALAÇÃO .AF_08/2023 | G4: UN | H4: 24 | I4: 70.63 | J4: =H4*I4 -> 1695.12
C5: 2.1.2 | D5: SINAPI | E5: 98111 | F5: CAIXA DE INSPEÇÃO PARA ATERRAMENTO, CIRCULAR, EM POLIETILENO, DIÂMETRO INTERNO = 0,3 M. AF_12/2020 | G5: UN | H5: 24 | I5: 67.22 | J5: =H5*I5 -> 1613.28
A6: 1 | B6: SINAPI | C6: 2.1.3 | D6: SINAPI | E6: 104750 | F6: CONECTOR GRAMPO METÁLICO TIPO OLHAL, PARASPDA, PARAHASTE DE ATERRAMENTODE 5/8'' E CABOS DE 10 A 50 MM2- FORNECIMENTO E INSTALAÇÃO .AF_08/2023 | G6: UN | H6: 24 | I6: 15.83 | J6: 379.92
A7: 2 | B7: SINAPI | C7: 2.1.4 | D7: SINAPI | E7: 101875 | F7: QUADRO DE DISTRIBUIÇÃO DE ENERGIA EM CHAPA DE AÇO GALVANIZADO, DE EMBUTIR, COM BARRAMENTO TRIFÁSICO, PARA 12 DISJUNTORES DIN 100A - FORNECIMENTO E INSTALAÇÃO. AF_10/2020 | G7: UN | H7: 1 | I7: 351.05 | J7: 351.05
A8: 3 | B8: SINAPI | C8: 2.2 | D8: Sistema de Captação | G8: und. | H8: 1 | J8: =SUM(J9:J12) -> 1823.02
A9: 4 | B9: SINAPI | C9: 2.2.1 | D9: SINAPI | E9: 96989 | F9: CAPTOR TIPO FRANKLIN PARA SPDA - FORNECIMENTO E INSTALAÇÃO. AF_08/2023 | G9: UN | H9: 2 | I9: 113.62 | J9: =H9*I9 -> 227.24
A10: 5 | B10: SINAPI | C10: 2.2.2 | D10: SINAPI | E10: 96988 | F10: MASTRO 1½" , COM 3 METROS, PARA SPDA - FORNECIMENTO E INSTALAÇÃO. AF_08/2023 | G10: UN | H10: 2 | I10: 135.82 | J10: =H10*I10 -> 271.64
A11: 6 | B11: SINAPI | C11: 2.2.3 | D11: SINAPI | E11: 96987 | F11: BASE METÁLICA PARA MASTRO 1½" PARA SPDA - FORNECIMENTO E INSTALAÇÃO.AF_08/2023 | G11: UN | H11: 2 | I11: 119.22 | J11: 238.44
A12: 7 | B12: SINAPI | C12: 2.2.4 | D12: SINAPI | E12: 104746 | F12: MINI CAPTOR PARA SPDA - FORNECIMENTO E INSTALAÇÃO. AF_08/2023 | G12: UN | H12: 42 | I12: 25.85 | J12: 1085.7
A13: 8 | B13: SINAPI | C13: 2.3 | D13: Condutores de proteção | G13: und. | H13: 1 | J13: =SUM(J14:J16) -> 121990.267
A14: 9 | B14: SINAPI | C14: 2.3.1 | D14: SINAPI | E14: 96977 | F14: CORDOALHA DE COBRE NU 50 MM², ENTERRADA - FORNECIMENTO E INSTALAÇÃO. AF_08/2023 | G14: UN | H14: 408.1 | I14: 71.97 | J14: =H14*I14 -> 29370.957
A15: 10 | B15: SINAPI | C15: 2.3.2 | D15: SINAPI | E15: 96973 | F15: CORDOALHA DE COBRE NU 35 MM², NÃO ENTERRADA, COM ISOLADOR - FORNECIMENTO E INSTALAÇÃO. AF_08/2023 | G15: UN | H15: 1134 | I15: 80.59 | J15: =H15*I15 -> 91389.06
A16: 11 | B16: SINAPI | C16: 2.3.3 | D16: SINAPI | E16: 96984 | F16: ELETRODUTO PVC RÍGIDO, DIÂMETRO 40MM, COM 3 METROS, PARA SPDA - FORNECIMENTO E INSTALAÇÃO. AF_08/2023 | G16: UN | H16: 19 | I16: 64.75 | J16: 1230.25
C17: TOTAL | J17: =J3+J8+J13 -> 127852.657

Sheet Cotação SGF Cobertura
A1: Processo | B1: 59500.002874/2024-99
A2: Responsável | B2: Zênia Macêdo
A3: Órgão | B3: AG/GCT/UTR
A4: Data da pesquisa | B4: outubro de 2024
A6: ITEM: | B6: =Resumo!B6 -> Projeto executivo, fornecimento, instalação, comissionamento e aprovação junto à concessionaria de energia local de Sistema de Geração Fotovoltaica on-grid de 424 kWp na cobertura do Edifício Sede da Codevasf, conforme condições estabelecidas neste edital e seus Anexos | F6: UNIDADE DE MEDIDA: | G6: kWp | H6: QUANTIDADE: | I6: 424
A7: LICITAÇÕES ANTERIORES
A8: Órgão | B8: Edital/Ano - Nº do Lote / Item | C8: Quantidade (Kwp) | D8: Valor Unitário R$/Kwp | E8: Data | F8: índice de atualização (nome) | G8: Variação acumulada do índice (%) | H8: Valor unitário aualizado | I8: Utilizar? (Sim/Não)
A9: Município de Céu Azul | B9: Pregão Eletrônico nº. 25/2024 | C9: 65 | D9: 1928.83 | E9: 2024-06-28 | H9: =D9 -> 1928.83 | I9: sim
A10: SEBRAE/MG | B10: Pregão Eletrônico – Nº 12/2023 | C10: 104.18 | D10: 3209.73 | E10: 2023-04-14 | H10: =D10 -> 3209.73 | I10: =IF(ISNUMBER(H10),IF(OR(H10<_xlfn.QUARTILE.INC(H9:H28,3)-1.5*(_xlfn.QUARTILE.INC(H9:H28,3)-_xlfn.QUARTILE.INC(H9:H28,1)),H10>_xlfn.QUARTILE.INC(H9:H28,3)+1.5*(_xlfn.QUARTILE.INC(H9:H28,3)-_xlfn.QUARTILE.INC(H9:H28,1))),"Não","Sim"),"") -> Sim
A11: TJ/AC | B11: Pregão Eletrônico nº. 26/2023 | C11: 169 | D11: 3508.88 | E11: 2023-05-30 | H11: 3508.88 | I11: =IF(ISNUMBER(H11),IF(OR(H11<_xlfn.QUARTILE.INC(H9:H28,3)-1.5*(_xlfn.QUARTILE.INC(H9:H28,3)-_xlfn.QUARTILE.INC(H9:H28,1)),H11>_xlfn.QUARTILE.INC(H9:H28,3)+1.5*(_xlfn.QUARTILE.INC(H9:H28,3)-_xlfn.QUARTILE.INC(H9:H28,1))),"Não","Sim"),"") -> Sim
A12: Prefeitura de Matrinchã | B12: Concorrência presencial n° 005/2024 | C12: 633.36 | D12: =870000/C12 -> 1373.626374 | E12: 2024-04-10 | H12: 1373.626374 | I12: sim
A13: Subseção Judiciária e Juizado Especial Federal de Dourados/MS | B13: Pregão 018/2023 | C13: 99 | D13: =278600/C13 -> 2814.141414 | E13: 2023-10-30 | H13: 2814.141414 | I13: sim
A14: CREA_GO | B14: Pregão 00048/2023 | C14: 218.35 | D14: =595621.51/C14 -> 2727.829219 | H14: 2727.829219 | I14: sim
A15: CISPARA | B15: Pregão Eletrônico nº. 5/2024 | C15: 21583.33 | D15: 5414.97 | E15: 2024-06-06 | H15: 5414.97 | I15: não
A17: COTAÇÕES DE MERCADO
A18: Empresa | G18: Data | H18: Valor Unitário | I18: Utilizar? (Sim/Não)
A19: mTEC | H19: =1289828.74/423.36 -> 3046.647628 | I19: sim
A20: Energia Solar | H20: =819000/423.36 -> 1934.52381 | I20: sim
I24: =IF(ISNUMBER(H24),IF(OR(H24<_xlfn.QUARTILE.INC(H9:H28,3)-1.5*(_xlfn.QUARTILE.INC(H9:H28,3)-_xlfn.QUARTILE.INC(H9:H28,1)),H24>_xlfn.QUARTILE.INC(H9:H28,3)+1.5*(_xlfn.QUARTILE.INC(H9:H28,3)-_xlfn.QUARTILE.INC(H9:H28,1))),"Não","Sim"),"") -> 
I25: =IF(ISNUMBER(H25),IF(OR(H25<_xlfn.QUARTILE.INC(H9:H28,3)-1.5*(_xlfn.QUARTILE.INC(H9:H28,3)-_xlfn.QUARTILE.INC(H9:H28,1)),H25>_xlfn.QUARTILE.INC(H9:H28,3)+1.5*(_xlfn.QUARTILE.INC(H9:H28,3)-_xlfn.QUARTILE.INC(H9:H28,1))),"Não","Sim"),"") -> 
I26: =IF(ISNUMBER(H26),IF(OR(H26<_xlfn.QUARTILE.INC(H9:H28,3)-1.5*(_xlfn.QUARTILE.INC(H9:H28,3)-_xlfn.QUARTILE.INC(H9:H28,1)),H26>_xlfn.QUARTILE.INC(H9:H28,3)+1.5*(_xlfn.QUARTILE.INC(H9:H28,3)-_xlfn.QUARTILE.INC(H9:H28,1))),"Não","Sim"),"") -> 
I27: =IF(ISNUMBER(H27),IF(OR(H27<_xlfn.QUARTILE.INC(H9:H28,3)-1.5*(_xlfn.QUARTILE.INC(H9:H28,3)-_xlfn.QUARTILE.INC(H9:H28,1)),H27>_xlfn.QUARTILE.INC(H9:H28,3)+1.5*(_xlfn.QUARTILE.INC(H9:H28,3)-_xlfn.QUARTILE.INC(H9:H28,1))),"Não","Sim"),"") -> 
I28: =IF(ISNUMBER(H28),IF(OR(H28<_xlfn.QUARTILE.INC(H9:H28,3)-1.5*(_xlfn.QUARTILE.INC(H9:H28,3)-_xlfn.QUARTILE.INC(H9:H28,1)),H28>_xlfn.QUARTILE.INC(H9:H28,3)+1.5*(_xlfn.QUARTILE.INC(H9:H28,3)-_xlfn.QUARTILE.INC(H9:H28,1))),"Não","Sim"),"") -> 
A29: Observações: | H29: CV: | I29: =IF(COUNTIF(I9:I28,"Sim")<3,"N/D (são necessários pelo menos 3 preços)",_xlfn.STDEV.S(IF(I9:I28="Sim",H9:H28))/AVERAGE(IF(I9:I28="Sim",H9:H28))) -> 0.2887398029
H30: Média: | I30: =AVERAGE(IF(I9:I28="Sim",H9:H28)) -> 2568.026056
H31: Mediana: | I31: =MEDIAN(IF(I9:I28="Sim",H9:H28)) -> 2770.985317
A32: VALOR UNITÁRIO ESTIMADO: | I32: =SMALL(I30:I31,1) -> 2568.026056

Sheet Cotação SGF Estacionamento
A1: Processo | B1: 59500.002874/2024-99
A2: Responsável | B2: Zênia Macêdo
A3: Órgão | B3: AG/GCT/UTR
A4: Data da pesquisa | B4: outubro de 2024
A6: ITEM: | B6: =Resumo!B7 -> Projeto Executivo, fornecimento, instalação, comissionamento e aprovação junto à concessionaria de energia local de Sistema de Geração Fotovoltaica on-grid em estrutura carport de 177 kWp no estacionamento do Edifício Sede da Codevasf, conforme condições estabelecidas neste edital e seus Anexos. | F6: UNIDADE DE MEDIDA: | G6: kWp | H6: QUANTIDADE: | I6: 177
A7: LICITAÇÕES ANTERIORES
A8: Órgão | B8: Edital/Ano - Nº do Lote / Item | C8: Quantidade (Kwp) | D8: Valor Unitário R$/Kwp | E8: Data | F8: índice de atualização (nome) | G8: Variação acumulada do índice (%) | H8: Valor unitário aualizado | I8: Utilizar? (Sim/Não)
A9: Município de Céu Azul | B9: Pregão Eletrônico nº. 25/2024 | C9: 65 | D9: =153626.2/65 -> 2363.48 | E9: 2024-05-27 | H9: =D9 -> 2363.48 | I9: sim
A10: MT Participações e Projetos S.A. | B10: Licitação 016-2024 MTPAR - https://www.mtpar.mt.gov.br/licitacoes-016-2024 | C10: 1760.9 | D10: =6610000/C10 -> 3753.762281 | E10: 2024-06-24 | H10: =D10 -> 3753.762281 | I10: sim | S10: =97.35*3707.88 -> 360962.118 | T10: =S10+117799.96+117799.96 -> 596562.038
A11: TRT 23ª Região | B11: Concorrência Eletrônica n.º 03/2023 | C11: 97.35 | D11: =447000/C11 -> 4591.679507 | E11: 2023-08-07 | H11: =D11 -> 4591.679507 | I11: sim | S11: =S10+117799.96+127990.26 -> 606752.338
C12: 158.4 | D12: =626000/158.4 -> 3952.020202 | H12: 3952.020202 | I12: sim
C13: 63.48 | D13: =227000/63.48 -> 3575.929427 | H13: 3575.929427 | I13: sim
A14: Justiça Federal 1ª Instância | B14: Pregão Eletrônico n.º 90009/2024-JF/RN | C14: 46 | D14: 3688 | E14: 2024-09-05 | H14: 3688 | I14: sim
C15: 63 | D15: 3688 | H15: 3688 | I15: sim
C16: 54 | D16: 3688 | H16: 3688 | I16: sim
C17: 61 | D17: 3674 | H17: 3674 | I17: sim
A19: COTAÇÕES DE MERCADO
A20: Empresa | G20: Data | H20: Valor Unitário | I20: Utilizar? (Sim/Não)
A21: mtec | H21: =783993.29/177.1 -> 4426.839582 | I21: sim
I26: =IF(ISNUMBER(H26),IF(OR(H26<_xlfn.QUARTILE.INC(H9:H30,3)-1.5*(_xlfn.QUARTILE.INC(H9:H30,3)-_xlfn.QUARTILE.INC(H9:H30,1)),H26>_xlfn.QUARTILE.INC(H9:H30,3)+1.5*(_xlfn.QUARTILE.INC(H9:H30,3)-_xlfn.QUARTILE.INC(H9:H30,1))),"Não","Sim"),"") -> 
I27: =IF(ISNUMBER(H27),IF(OR(H27<_xlfn.QUARTILE.INC(H9:H30,3)-1.5*(_xlfn.QUARTILE.INC(H9:H30,3)-_xlfn.QUARTILE.INC(H9:H30,1)),H27>_xlfn.QUARTILE.INC(H9:H30,3)+1.5*(_xlfn.QUARTILE.INC(H9:H30,3)-_xlfn.QUARTILE.INC(H9:H30,1))),"Não","Sim"),"") -> 
I28: =IF(ISNUMBER(H28),IF(OR(H28<_xlfn.QUARTILE.INC(H9:H30,3)-1.5*(_xlfn.QUARTILE.INC(H9:H30,3)-_xlfn.QUARTILE.INC(H9:H30,1)),H28>_xlfn.QUARTILE.INC(H9:H30,3)+1.5*(_xlfn.QUARTILE.INC(H9:H30,3)-_xlfn.QUARTILE.INC(H9:H30,1))),"Não","Sim"),"") -> 
I29: =IF(ISNUMBER(H29),IF(OR(H29<_xlfn.QUARTILE.INC(H9:H30,3)-1.5*(_xlfn.QUARTILE.INC(H9:H30,3)-_xlfn.QUARTILE.INC(H9:H30,1)),H29>_xlfn.QUARTILE.INC(H9:H30,3)+1.5*(_xlfn.QUARTILE.INC(H9:H30,3)-_xlfn.QUARTILE.INC(H9:H30,1))),"Não","Sim"),"") -> 
I30: =IF(ISNUMBER(H30),IF(OR(H30<_xlfn.QUARTILE.INC(H9:H30,3)-1.5*(_xlfn.QUARTILE.INC(H9:H30,3)-_xlfn.QUARTILE.INC(H9:H30,1)),H30>_xlfn.QUARTILE.INC(H9:H30,3)+1.5*(_xlfn.QUARTILE.INC(H9:H30,3)-_xlfn.QUARTILE.INC(H9:H30,1))),"Não","Sim"),"") -> 
A31: Observações: | H31: CV: | I31: =IF(COUNTIF(I9:I30,"Sim")<3,"N/D (são necessários pelo menos 3 preços)",_xlfn.STDEV.S(IF(I9:I30="Sim",H9:H30))/AVERAGE(IF(I9:I30="Sim",H9:H30))) -> 0.1588392362
H32: Média: | I32: =AVERAGE(IF(I9:I30="Sim",H9:H30)) -> 3740.1711
H33: Mediana: | I33: =MEDIAN(IF(I9:I30="Sim",H9:H30)) -> 3688
A34: VALOR UNITÁRIO ESTIMADO: | I34: =SMALL(I32:I33,1) -> 3688

Sheet BDI
A1: SEM DESONERAÇÃO
A3: MEMÓRIA DE CALCULO DO BDI DE SERVIÇOS
A5: ITEM | B5: DISCRIMINAÇÃO | C5: PERC. (%)
A7: 1.00 | B7: Despesas Indiretas
A8: A1 | B8: Seguro e Garantia | C8: 0.008
A9: A2 | B9: Riscos e Imprevistos | C9: 0.01
A10: A3 | B10: Despesas Financeiras | C10: 0.0065
A11: A4 | B11: Administração Central | C11: 0.032
A12: Total do Grupo A = | C12: =SUM(C8:C11) -> 0.0565
A13: 2.00 | B13: Benefício
A14: B-1 | B14: LUCRO | C14: 0.067
A15: Total do Grupo B = | C15: =C14 -> 0.067
A16: 3.00 | B16: Impostos
A17: C-1 | B17: PIS / PASEP | C17: 0.0065
A18: C-2 | B18: COFINS | C18: 0.03
A19: C-3 | B19: ISS | C19: 0.03
A20: Total do Grupo C = | C20: 0.0665
A21: Fórmula Para Cálculo do B.D.I
A22: BDI =(((1+A4+A1+A2)*(1+A3)*(1+B))/(1-C))-1
A24: Bonificação Sobre Despesas indiretas (B.D.I) = | C24: =(((1+C11+C8+C9)*(1+C10)*(1+C15))/(1-C20))-1 -> 0.20796173

Sheet Encargos Sociais
A1: SEM DESONERAÇÃO
A3: DETALHAMENTO DOS ENCARGOS SOCIAIS
A5: Encargos Sociais - Distrito Federal | E5: Vigência a partir de 12/2023 - SINAPI
A6: ENCARGOS SOCIAIS SOBRE MÃO DE OBRA
A8: DISCRIMINAÇÃO | E8: SEM DESONERAÇÃO
E9: HORISTA % | F9: MENSALISTA %
A10: A | B10: ENCARGOS SOCIAIS BÁSICOS | E10: =SUM(E11:E19) -> 0.378 | F10: =SUM(F11:F19) -> 0.378
A11: A1 | B11: INSS | E11: 0.2 | F11: 0.2
A12: A2 | B12: SESI | E12: 0.015 | F12: 0.015
A13: A3 | B13: SENAI | E13: 0.01 | F13: 0.01
A14: A4 | B14: INCRA | E14: 0.002 | F14: 0.002
A15: A5 | B15: SEBRAE | E15: 0.006 | F15: 0.006
A16: A6 | B16: Saário Educação | E16: 0.025 | F16: 0.025
A17: A7 | B17: Seguro Contra Acidentes de Trabalho | E17: 0.03 | F17: 0.03
A18: A8 | B18: FGTS | E18: 0.08 | F18: 0.08
A19: A9 | B19: SECONCI | E19: 0.01 | F19: 0.01
A20: B | B20: ENCARGOS SOCIAIS QUE RECEBEM INCIDÊNCIA DE "A" | E20: =SUM(E21:E30) -> 0.433 | F20: =SUM(F21:F30) -> 0.1624
A21: B1 | B21: Repouso Semanal Remunerado | E21: 0.1775 | F21: Não incide
A22: B2 | B22: Feriados | E22: 0.0341 | F22: Não incide
A23: B3 | B23: Axílio - Enfermidade | E23: 0.0085 | F23: 0.0064
A24: B4 | B24: 13º Salário | E24: 0.1072 | F24: 0.0833
A25: B5 | B25: Licença Paternidade | E25: 0.0006 | F25: 0.0004
A26: B6 | B26: Faltas Justificadas | E26: 0.0071 | F26: 0.0056
A27: B7 | B27: Dias de chuva | E27: 0.0132 | F27: Não incide
A28: B8 | B28: Auxílio Acidente de Trabalho | E28: 0.001 | F28: 0.0008
A29: B9 | B29: Férias Gozadas | E29: 0.0834 | F29: 0.0656
A30: B10 | B30: Salário Maternidade | E30: 0.0004 | F30: 0.0003
A31: C | B31: ENCARGOS SOCIAIS QUE NÃO RECEBEM INCIDÊNCIA DE "A" | E31: =SUM(E32:E36) -> 0.123 | F31: =SUM(F32:F36) -> 0.0957
A32: C1 | B32: Aviso Prévio Indenizado | E32: 0.0416 | F32: 0.0324
A33: C2 | B33: Aviso Prévio Trabalhado | E33: 0.001 | F33: 0.0008
A34: C3 | B34: Férias Indenizadas | E34: 0.0461 | F34: 0.0359
A35: C4 | B35: Depósito Rescisão Sem Justa Causa | E35: 0.0308 | F35: 0.0239
A36: C5 | B36: Indenização Adicional | E36: 0.0035 | F36: 0.0027
A37: D | B37: REINCIDÊNCIAS | E37: =SUM(E38:E39) -> 0.1674 | F37: =SUM(F38:F39) -> 0.0643
A38: D1 | B38: Reincidência de "A" sobre "B" | E38: 0.1637 | F38: 0.0614
A39: D2 | B39: Reincidência de "A" sobre Aviso Prévio Trabalhado e reincidência do FGTS sobre Aviso Prévio Indenizado | E39: 0.0037 | F39: 0.0029
B40: ENCARGOS SOCIAIS | E40: =SUM(E37,E31,E20,E10) -> 1.1014 | F40: =SUM(F37,F31,F20,F10) -> 0.7004

Sheet Cronograma
C1: Ministério da Integração e do Desenvolvimento Regional – MIDR Companhia de Desenvolvimento dos Vales do São Francisco e do Parnaíba
A2: Fornecimento, a instalação, o comissionamento, a aprovação junto à concessionária de energia local e a operação assistida e manutenção por período de 12 meses de Sistema de Geração Fotovoltaica on-grid para o Edifício Sede da Codevasf, localizado em Brasília/DF
A3: Cronograma Físico e Financeiro
B4: Descrição | C4: Total Por Etapa | D4: 30 DIAS | E4: 60 DIAS | F4: 90 DIAS | G4: 120 DIAS | H4: 150 DIAS | I4: 180 DIAS | J4: 210 DIAS | K4: 240 DIAS | L4: 270 DIAS | M4: 300 DIAS | N4: 330 DIAS | O4: 360 DIAS | P4: 390 DIAS | Q4: 410 DIAS | R4: 440 DIAS | S4: 470 DIAS | T4: 510 DIAS | U4: 540 DIAS | V4: 570 DIAS | W4: 695 DIAS
A5: 1 | B5: Mobilização de pessoal e equipamentos | C5: =SUM(D5:W5) -> 1 | D5: 1
A6: 2 | B6: Fornecimento e instalação da placa de obra | C6: 1 | D6: 1
A7: 3 | B7: Implantação e manutenção do canteiro de obras; | C7: 1 | D7: 0.125 | E7: 0.125 | F7: 0.125 | G7: 0.125 | H7: 0.125 | I7: 0.125 | J7: 0.125 | K7: 0.125
A8: 4 | B8: Elaboração do Projeto Executivo | C8: 1 | D8: 1
A9: 5 | B9: Adequação do Telhado | C9: 1 | D9: 0.5 | E9: 0.5
A10: 6 | B10: Adequação do SPDA | C10: 1 | D10: 0.5 | E10: 0.5
A11: 7 | B11: SGF da Cobertura | C11: 1 | F11: 0.1 | G11: 0.18 | H11: 0.18 | I11: 0.18 | J11: 0.18 | K11: 0.18
A12: 8 | B12: SGF do Estacionamento | C12: 1 | G12: 0.2 | H12: 0.2 | I12: 0.2 | J12: 0.2 | K12: 0.2
A13: 9 | B13: Comissionamento | C13: 1 | K13: 1
A14: 10 | B14: Desmobilização de pessoal e equipamentos | C14: 1 | K14: 1
A15: 11 | B15: Homologação do sistema | C15: 1 | K15: 1
A16: 12 | B16: Serviço de Operação Assistida e Manutenção | C16: =SUM(D16:W16) -> 0.9996 | L16: 0.0833 | M16: 0.0833 | N16: 0.0833 | O16: 0.0833 | P16: 0.0833 | Q16: 0.0833 | R16: 0.0833 | S16: 0.0833 | T16: 0.0833 | U16: 0.0833 | V16: 0.0833 | W16: 0.0833
